Cogmind - Beta 15 @@@ ROGUE MODE // 2025.05.14 @ 13:32:49 Player: Minty Result: Self-destructed Performance ------------- Evolutions (4) 2000 Regions Visited (12) 2400 Robots Destroyed (113) 565 Value Destroyed (3714) 3714 Prototype IDs (42) 840 Alien Tech Used (0) 0 Bonus (509) 509 TOTAL SCORE: 10028 Bonus ------- Follower Combat Kills 63 Aligned with FarCom 300 Met Data Miner 300 Friendly Fire -154 Cogmind --------- Core Integrity 271/850 Matter 3/300 Energy 100/100 System Corruption 5% Temperature Cool (9) Movement Core (350) Ox6 Location -6/Factory Parts ------- > --- POWER (1) -------- (None) > --- PROPULSION (5) --- (None) > --- UTILITY (7) ------ Large Storage Unit Improved Signal Interpreter Improved Targeting Computer Hacking Suite > --- WEAPON (2) ------- (None) > --- INVENTORY (15) --- Cooled Ion Engine Advanced Sensor Array Improved Particle Charger Improved Particle Charger Improved Particle Charger Gatling Laser Firepult Improved Assault Rifle Improved Assault Rifle Mini Assault Cannon Heavy Missile Launcher Heavy Missile Launcher Heavy Missile Launcher Heavy Missile Launcher Peak State ------------ > --- POWER ------------ Cooled Ion Engine > --- PROPULSION ------- Heavy Treads Wheel Armored Huge Wheel > --- UTILITY ---------- Large Storage Unit Compact Battery Improved Targeting Computer Improved Particle Charger Hacking Suite Hacking Suite Mini Drone Bay > --- WEAPON ----------- Beamcaster Beamcaster > --- INVENTORY -------- Nuclear Core Improved Particle Charger Improved Particle Charger Improved Particle Charger Gatling Laser Firepult Improved Assault Rifle Improved Assault Rifle Improved Assault Rifle Mini Assault Cannon Heavy Missile Launcher Heavy Missile Launcher Heavy Missile Launcher Heavy Missile Launcher [Rating: 64] Favorites ----------- Power Cooled Ion Engine Engine Cooled Ion Engine Power Core Nuclear Core Propulsion Wheel Treads Light Treads Leg Aluminum Leg Wheel Wheel Utility Hacking Suite Device Hardlight Generator Storage Large Storage Unit Processor Advanced Targeting Computer Hackware Hacking Suite Protection Improved Propulsion Shielding Weapon Gatling Laser Energy Gun Gatling Laser Energy Cannon Light EM Pulse Cannon Ballistic Gun Improved Assault Rifle Ballistic Cannon Improved Light Cannon Launcher Mini Grenade Launcher Build | -11 -10 -9 -9 -9 -8 -8 -7 -7 -7 -7 -6 -6 ------- Run | Yrd Mat Mat Min Exi Min Mat Fac Low Low Dat Pro Fac Slots Evolved 8 | . . 2 . . . 2 2 . . . . 2 Power . | . . . . . . . . . . . . . Propulsion 3 | . . . . . . 1 . . . . . 2 Utility 5 | . . 2 . . . 1 2 . . . . . Weapon . | . . . . . . . . . . . . . Parts Attached 78 | . 2 21 6 2 5 8 8 3 6 . 1 16 Power 6 | . . 2 . . 1 1 . . 1 . . 1 Engine 5 | . . 2 . . 1 1 . . 1 . . . Core 1 | . . . . . . . . . . . . 1 Reactor . | . . . . . . . . . . . . . Propulsion 13 | . . 6 2 . 2 . . . . . . 3 Treads 7 | . . 6 . . . . . . . . . 1 Leg . | . . . . . . . . . . . . . Wheel 6 | . . . 2 . 2 . . . . . . 2 Hover . | . . . . . . . . . . . . . Flight . | . . . . . . . . . . . . . Utility 32 | . 2 8 . 2 1 4 4 2 2 . . 7 Device 7 | . . . . 1 . . 2 . . . . 4 Storage 3 | . 1 . . 1 . . . 1 . . . . Processor 7 | . 1 1 . . . . . 1 2 . . 2 Hackware 6 | . . 2 . . . 2 1 . . . . 1 Protection 9 | . . 5 . . 1 2 1 . . . . . Artifact . | . . . . . . . . . . . . . Weapon 27 | . . 5 4 . 1 3 4 1 3 . 1 5 Energy Gun 7 | . . . 1 . . 2 2 . 2 . . . Energy Cannon 4 | . . 2 . . . . . . 1 . 1 . Ballistic Gun 7 | . . . 3 . 1 . . . . . . 3 Ballistic Cannon 3 | . . 2 . . . . 1 . . . . . Launcher 6 | . . 1 . . . 1 1 1 . . . 2 Special Weapon . | . . . . . . . . . . . . . Impact Weapon . | . . . . . . . . . . . . . Slashing Weapon . | . . . . . . . . . . . . . Piercing Weapon . | . . . . . . . . . . . . . Special Melee Weapon . | . . . . . . . . . . . . . Unidentified Prototypes 4 | . . 1 . . . 2 1 . . . . . Parts Lost 38 | . . 1 6 . 2 2 5 2 6 . . 14 Power 3 | . . . . . . . 1 . 1 . . 1 Propulsion 9 | . . . 2 . 2 . . . 2 . . 3 Utility 15 | . . 1 1 . . . 2 2 2 . . 7 Weapon 11 | . . . 3 . . 2 2 . 1 . . 3 Highest Loss Streak 4 | . . 1 3 . 1 1 3 1 3 . . 4 To Critical Strikes . | . . . . . . . . . . . . . Average Backups 11 | 6 6 9 9 9 9 11 13 11 11 13 13 13 Power 1 | 1 1 . 1 . . 1 . 1 1 2 2 1 Propulsion . | 4 4 1 . . . . . . . . . . Utility 3 | . . 6 7 6 6 4 1 1 . . . 2 Weapon 6 | 1 1 . 1 2 2 5 10 9 9 11 11 9 Tool/Special . | . . . . . . . . . . . . . Unused Backups 17 | . . 7 . 2 . 2 1 . . . . 5 Power 2 | . . 1 . . . . . . . . . 1 Propulsion 2 | . . 2 . . . . . . . . . . Utility 9 | . . 2 . 2 . 1 . . . . . 4 Weapon 4 | . . 2 . . . 1 1 . . . . . Tool/Special . | . . . . . . . . . . . . . Average Slot Usage (%) 76 | . 91 97 72 65 87 86 85 90 81 45 46 66 Engine 6 | . 14 11 5 5 10 9 7 7 6 . . 3 Treads 4 | . . 19 10 . . . . . . . . 2 Leg 1 | . 28 2 . . . . . . . . . . Wheel 8 | . . . 9 22 20 17 15 15 10 . . 7 Device 2 | . . . . 5 . 2 2 10 3 . . 7 Storage 11 | . 14 11 11 11 11 9 7 12 10 14 15 8 Processor 9 | . 5 11 11 11 11 . . 2 11 15 15 8 Hackware 13 | . . 4 17 11 11 26 25 16 15 15 15 14 Protection 5 | . . 15 . . 10 6 11 7 6 . . . Energy Gun 5 | . 28 2 1 . . 8 14 14 13 . . 5 Energy Cannon 2 | . . 11 2 . . . . . . . . . Ballistic Gun 2 | . . . 2 . 11 7 . . . . . 4 Ballistic Cannon 1 | . . 6 . . . . . . . . . . Peak Build Rating 64 | 6 7 22 20 24 30 39 43 43 47 21 41 64 Average Rating 26 | 6 6 16 14 17 25 34 38 39 34 20 21 42 On Entrance 21 | 6 6 7 20 11 24 30 35 43 38 22 21 21 Naked Turns . | . . . . . . . . . . . . . Heaviest Build 57 | 11 16 37 23 36 43 45 51 52 57 21 27 45 Greatest Support 70 | 20 20 43 43 20 20 20 20 20 20 3 3 70 Greatest Overweight (x) 11 | . . 1 1 1 4 2 2 2 8 6 8 11 Average Overweight (x) 1 | . . . . . 1 1 1 2 2 6 6 2 Largest Inventory Capacity 15 | 8 10 10 10 15 15 15 15 15 15 15 15 15 Average Capacity 13 | 8 9 10 10 10 15 15 15 15 15 15 15 15 Most Carried 15 | 6 7 10 10 10 11 15 15 13 15 15 15 15 Average Carried 12 | 6 6 9 9 9 10 12 14 12 12 14 14 14 Final Capacity 15 | 8 10 10 10 15 15 15 15 15 15 15 15 15 Final Carried 15 | 6 7 10 10 10 11 15 12 13 15 15 15 15 Class Distribution -------------------- 64% | Hacker-Mutant 35% | Mutant Dominant Class ---------------- Mutant | -10/Materials Mutant | -9/Materials Mutant | -9/Mines Mutant | -9/Exiles Mutant | -8/Mines Hacker-Mutant | -8/Materials Hacker-Mutant | -7/Factory Hacker-Mutant | -7/Lower Caves Hacker-Mutant | -7/Lower Caves Hacker-Mutant | -7/Data Miner Hacker-Mutant | -6/Proximity Caves Hacker-Mutant | -6/Factory Resources | -11 -10 -9 -9 -9 -8 -8 -7 -7 -7 -7 -6 -6 ----------- Run | Yrd Mat Mat Min Exi Min Mat Fac Low Low Dat Pro Fac Matter Collected 2160 | 200 20 451 149 20 286 132 225 163 93 . 89 332 Remotely . | . . . . . . . . . . . . . Salvage Created 3928 | . 90 791 138 . 484 322 403 286 84 . 286 1044 Parts 170 | . 7 50 15 . 18 16 11 7 . . 4 42 Haulers Intercepted 5 | . . 3 . . . 2 . . . . . . Recyclers Shooed 3 | . . . . . . . . . . . . 3 Parts Field Recycled . | . . . . . . . . . . . . . Retrieved Matter . | . . . . . . . . . . . . . Parts Self-Destructed 14 | . . . . . . . . 4 7 . 3 . Prevented . | . . . . . . . . . . . . . Kills | -11 -10 -9 -9 -9 -8 -8 -7 -7 -7 -7 -6 -6 ------- Run | Yrd Mat Mat Min Exi Min Mat Fac Low Low Dat Pro Fac Combat Hostiles Destroyed 90 | . 4 18 10 . 8 9 13 8 1 . 4 15 Melee 1 | . . . 1 . . . . . . . . . Guns 39 | . 4 . . . 4 5 11 6 . . . 9 Cannons 17 | . . 14 1 . . . . . . . . 2 AOE 30 | . . 4 8 . 4 4 2 2 . . 2 4 Classes Destroyed 18 | . 2 6 1 . 1 . 2 . 1 . 1 4 Worker 5 | . . 1 1 . 1 . . . . . . 2 Builder 3 | . . 2 . . . . . . . . . 1 Tunneler 2 | . . . 1 . 1 . . . . . . . Hauler 5 | . . 3 . . . 2 . . . . . . Recycler 4 | . . . . . 2 . . . . . . 2 Mechanic 1 | . . . . . . . . . . . . 1 Operator 1 | . . . . . . . . . . . . 1 Watcher 2 | . . 2 . . . . . . . . . . Swarmer 26 | . 3 6 7 . . 4 6 . . . . . Grunt 43 | . 1 6 1 . 8 5 5 6 . . 3 8 Brawler 2 | . . . . . . . 1 1 . . . . Duelist 4 | . . 1 1 . . . . 1 . . . 1 Sentry 7 | . . 5 . . . . . . . . . 2 Specialist 2 | . . . . . . . . . . . . 2 Hunter 2 | . . . . . . . 1 . . . 1 . Programmer 2 | . . . . . . . . . . . . 2 Behemoth 1 | . . . . . . . . . 1 . . . Samaritan 1 | . . . . . . . . . . . 1 . Best Kill Streak 7 | . 4 7 7 . 4 4 6 4 1 . 3 7 Combat Bots Only 6 | . 4 5 6 . 3 4 6 4 1 . 3 6 Max Kills in Single Turn 3 | . 1 3 2 . 2 3 2 1 1 . 2 3 Gunslinging . | . . . . . . . . . . . . . Exploded 3 | . . 2 2 . 1 3 2 1 . . 1 1 Melee 1 | . . . 1 . . . . . . . . . Uniques/NPCs Destroyed 1 | . . . 1 . . . . . . . . . YI-UF0 (-9/Mines) Combat | -11 -10 -9 -9 -9 -8 -8 -7 -7 -7 -7 -6 -6 -------- Run | Yrd Mat Mat Min Exi Min Mat Fac Low Low Dat Pro Fac Hostile Shots Fired 652 | . 28 91 39 . 39 35 71 32 38 . 10 269 Missed 186 | . 12 28 10 . 7 11 17 7 14 . 3 77 Hits 466 | . 16 63 29 . 32 24 54 25 24 . 7 192 Melee 10 | . . 7 . . . . . . 1 . . 2 Projectile 456 | . 16 56 29 . 32 24 54 25 23 . 7 190 AOE 19 | . . . 19 . . . . . . . . . Critical Strikes 15 | . . 3 . . 2 1 3 . 2 . . 4 Part Disruptions 4 | . . . . . . . . . . . . 4 Damage Taken 6855 | . 144 884 786 . 497 365 758 290 386 . 207 2538 Core 1414 | . 16 46 169 . 93 96 219 48 108 . 40 579 Absorbed by Shields 248 | . . . . . . . 104 100 44 . . . Reduced by Siege Mode 110 | . . . . . . . . . . . . 110 Redirected to Shielding 108 | . . . . . . . 56 23 29 . . . Ignored by Resistances 10 | . . . . . . . 10 . . . . . Regen/Repaired (Parts) 279 | . . . . . . 33 . . . . . 246 Core Remaining (%) 67 | 100 93 . . . 23 82 . . . . 40 . Volleys Fired 251 | . 11 41 17 . 30 26 20 16 4 . 6 80 Largest 2 | . 2 2 2 . 2 2 2 2 2 . 1 2 Hottest 250 | . 90 112 112 . 53 160 160 160 250 . 250 250 Shots Fired 418 | . 18 78 25 . 35 49 38 28 8 . 6 133 Gun 277 | . 18 . 12 . 25 47 37 25 6 . . 107 Cannon 112 | . . 77 7 . . . . . 2 . 6 20 Launcher 29 | . . 1 6 . 10 2 1 3 . . . 6 Special . | . . . . . . . . . . . . . Kinetic 185 | . . 43 9 . 25 29 . . . . . 79 Thermal 163 | . 18 . 3 . . 18 37 25 8 . 6 48 Explosive 29 | . . 1 6 . 10 2 1 3 . . . 6 Electromagnetic 41 | . . 34 7 . . . . . . . . . Robot Hit Streak 19 | . 4 11 14 . 15 9 8 6 6 . 8 19 Robot Miss Streak 7 | . 3 2 3 . 3 7 4 4 3 . 1 3 Penetration Max 1 | . . . . . 1 1 . . . . . . Secondary Targets 6 | . . . . . . 1 1 2 . . . 2 Max Gunslinging Chain 1 | . . . . . . 1 1 1 . . . 1 Shots Hit Robots 315 | . 11 52 16 . 24 35 32 22 6 . 4 113 Core Hits 216 | . 5 31 18 . 22 23 30 21 2 . 12 52 Critical Kills 1 | . . . . . 1 . . . . . . . Critical Parts Destroyed . | . . . . . . . . . . . . . Critical Strikes 8 | . 2 . . . 1 . . . . . . 5 Burn 7 | . 2 . . . . . . . . . . 5 Destroy 1 | . . . . . 1 . . . . . . . Melee Attacks . | . . . . . . . . . . . . . Impact . | . . . . . . . . . . . . . Slashing . | . . . . . . . . . . . . . Piercing . | . . . . . . . . . . . . . Sneak Attacks . | . . . . . . . . . . . . . Combat Hostiles . | . . . . . . . . . . . . . Follow-up Attacks . | . . . . . . . . . . . . . Damage Inflicted 10031 | . 133 1692 637 . 1105 949 959 806 255 . 446 3049 Guns 4155 | . 133 . 73 . 388 675 698 388 55 . . 1745 Cannons 2064 | . . 1281 117 . . . . . 105 . 120 441 Explosions 3765 | . . 381 437 . 710 274 261 418 95 . 326 863 Melee . | . . . . . . . . . . . . . Ramming 47 | . . 30 10 . 7 . . . . . . . Kinetic 2757 | . . 696 42 . 388 378 . . . . . 1253 Thermal 3822 | . 133 149 88 . . 297 959 388 255 . 446 1107 Explosive 2703 | . . 232 380 . 710 274 . 418 . . . 689 Electromagnetic 702 | . . 585 117 . . . . . . . . . Impact . | . . . . . . . . . . . . . Slashing . | . . . . . . . . . . . . . Piercing . | . . . . . . . . . . . . . Highest Corruption 7 | . . 2 2 2 2 . 7 7 7 7 7 5 Average Corruption 4 | . . 2 2 2 2 . 4 7 7 7 7 3 Corruption Purged . | . . . . . . . . . . . . . Corruption Blocked . | . . . . . . . . . . . . . Effects 105 | . . 5 7 5 9 . . 17 19 9 23 11 Message Errors 26 | . . 2 2 1 1 . . 4 4 2 6 4 Matter Fused 19 | . . . 1 . 2 . . 3 5 1 5 2 Heat Flow Errors 17 | . . 1 3 2 1 . . 3 1 1 4 1 Energy Discharges 12 | . . 1 . . 1 . . 1 3 2 3 1 Parts Fused 2 | . . . . 1 . . . . . 1 . . Data Loss (minor) 12 | . . . . 1 2 . . 3 1 1 3 1 Data Loss (major) 9 | . . 1 . . 2 . . 1 2 1 2 . Misfires 3 | . . . . . . . . 1 2 . . . Alerts 2 | . . . 1 . . . . . 1 . . . Weapon Failures 3 | . . . . . . . . 1 . . . 2 Overload Shots . | . . . . . . . . . . . . . Overflow Damage 93 | . . 36 2 . 11 . . 9 . . . 35 Projectiles 42 | . . 12 . . . . . . . . . 30 Explosions 51 | . . 24 2 . 11 . . 9 . . . 5 Melee . | . . . . . . . . . . . . . Knockbacks 9 | . . 8 . . . . . . . . . 1 Impact . | . . . . . . . . . . . . . Kinetic 9 | . . 8 . . . . . . . . . 1 Secondary . | . . . . . . . . . . . . . Self-Inflicted Damage 162 | . . . 34 . 3 27 . . 28 . 68 2 Shots 10 | . . . 2 . . 1 . . 2 . 4 1 Rammed 19 | . . 11 5 . 2 . . . . . . 1 Targets Rammed 20 | . . 11 6 . 2 . . . . . . 1 Kicked . | . . . . . . . . . . . . . Crushed 1 | . . . 1 . . . . . . . . . Highest Temperature 904 | . 196 283 289 231 147 311 356 399 486 256 424 904 Average Temperature 141 | . 82 105 86 110 54 126 149 124 160 137 170 250 Received Heat Transfer 2300 | . 30 264 30 . 297 189 217 160 411 . . 702 Effects 26 | . . . . . . 2 2 1 2 . 3 16 Shutdowns 5 | . . . . . . . 1 1 . . 1 2 Energy Bleed 1 | . . . . . . . . . . . . 1 Interference 9 | . . . . . . 2 . . 2 . 1 4 Matter Decay 2 | . . . . . . . 1 . . . . 1 Short Circuit 1 | . . . . . . . . . . . 1 . Damage (minor) 3 | . . . . . . . . . . . . 3 Damage (major) 4 | . . . . . . . . . . . . 4 Damage (core) 1 | . . . . . . . . . . . . 1 Siege Activations 2 | . . . . . . . . . . . . 2 Total Turns 65 | . . . . . . . . . . . . 65 Longest Duration 43 | . . . . . . . . . . . . 43 Martial Activations . | . . . . . . . . . . . . . Shielding Activations . | . . . . . . . . . . . . . Robots Disrupted . | . . . . . . . . . . . . . Combat Hostiles . | . . . . . . . . . . . . . Robots Corrupted . | . . . . . . . . . . . . . Combat Hostiles . | . . . . . . . . . . . . . Parts Fried 4 | . . 4 . . . . . . . . . . Impact Corruptions . | . . . . . . . . . . . . . Robots Melted 4 | . . . . . . . . . 1 . 2 1 Combat Hostiles 3 | . . . . . . . . . 1 . 2 . Parts Melted 38 | . 3 . . . . 3 2 1 10 . 13 6 Heat Transferred 10273 | . 519 300 174 . . 675 1850 900 1005 . 1914 2936 Parts Sabotaged . | . . . . . . . . . . . . . Parts Stolen 1 | . . . . . . . . . 1 . . . Parts Stripped . | . . . . . . . . . . . . . Power Chain Reactions 4 | . . 3 1 . . . . . . . . . Alert | -11 -10 -9 -9 -9 -8 -8 -7 -7 -7 -7 -6 -6 ------- Run | Yrd Mat Mat Min Exi Min Mat Fac Low Low Dat Pro Fac Maximum Alert Level 1 | . . 1 . . . . 1 . . . . . Low Security (%) 83 | 100 100 63 100 . 100 100 34 . . . . 100 Level 1 16 | . . 36 . . . . 65 . . . . . Level 2 . | . . . . . . . . . . . . . Level 3 . | . . . . . . . . . . . . . Level 4 . | . . . . . . . . . . . . . Level 5 . | . . . . . . . . . . . . . High Security . | . . . . . . . . . . . . . Max Security . | . . . . . . . . . . . . . Peak Influence 352 | . 90 335 199 . 144 151 352 . . . . 130 Initial 125 | . . 33 125 . . 10 45 . . . . . Average 106 | . 14 155 118 . 72 74 207 . . . . 43 Influence Increases 3040 | . 116 628 249 . 399 241 547 240 30 . 100 490 Destroy 0b10 Robot/C 1880 | . 80 360 180 . 260 180 260 160 20 . 80 300 Destroy 0b10 Robot/NC 115 | . . 40 10 . 20 10 . . . . . 35 Destroy Leader 394 | . 20 110 30 . 40 24 50 20 10 . 20 70 Allied During Kill 25 | . . . . . 25 . . . . . . . Successful Hack 94 | . 16 32 . . . 6 26 . . . . 14 Disable Machine 210 | . . 45 . . . . 135 . . . . 30 Destroy Structure 187 | . . 41 29 . 54 21 31 . . . . 11 Partial Spotted 15 | . . . . . . . 15 . . . . . Lose Combat Pursuer 120 | . . . . . . . 30 60 . . . 30 Influence Decreases 2939 | . 36 385 480 92 372 167 312 351 255 . 100 389 Entered New Map 579 | . . 47 198 92 . 17 56 125 44 . . . Time Decay 1940 | . 36 328 222 . 292 130 206 206 171 . 100 249 Lost Part 360 | . . 10 60 . 20 20 50 20 40 . . 140 Lost Ally 60 | . . . . . 60 . . . . . . . Squads Dispatched 19 | . 3 2 2 . . 1 3 . . . . 8 Investigation 8 | . 1 1 2 . . 1 2 . . . . 1 Extermination 3 | . . . . . . . 1 . . . . 2 Reinforcement 5 | . 2 1 . . . . . . . . . 2 Assault . | . . . . . . . . . . . . . Garrison 3 | . . . . . . . . . . . . 3 Intercept . | . . . . . . . . . . . . . Searches Triggered . | . . . . . . . . . . . . . Data Miner Redirects 1 | . . . . . . . . . . . . 1 Construction Impeded 1 | . . 1 . . . . . . . . . . Haulers Reinforced . | . . . . . . . . . . . . . Active Scanning Responses . | . . . . . . . . . . . . . Cargo Convoy Interrupts . | . . . . . . . . . . . . . Stealth | -11 -10 -9 -9 -9 -8 -8 -7 -7 -7 -7 -6 -6 --------- Run | Yrd Mat Mat Min Exi Min Mat Fac Low Low Dat Pro Fac Distress Signals 6 | . . 3 . . . . 1 . . . . 2 Communications Jammed . | . . . . . . . . . . . . . Distress Signals . | . . . . . . . . . . . . . Times Spotted 148 | . 6 29 13 . 17 12 19 12 9 . 4 27 Peak Tracking Total 6 | . 4 5 4 . 4 4 5 4 6 . 3 5 Tactical Retreats 4 | . . . . . . . 1 1 . . . 2 Traps | -11 -10 -9 -9 -9 -8 -8 -7 -7 -7 -7 -6 -6 ------- Run | Yrd Mat Mat Min Exi Min Mat Fac Low Low Dat Pro Fac Traps Triggered 5 | . . 1 . . . . 4 . . . . . Indirectly . | . . . . . . . . . . . . . Trap Hack Attempts . | . . . . . . . . . . . . . Triggered . | . . . . . . . . . . . . . Disarmed 4 | . . 4 . . . . . . . . . . Reprogrammed 2 | . . 2 . . . . . . . . . . Reused . | . . . . . . . . . . . . . Traps Extracted . | . . . . . . . . . . . . . Installed . | . . . . . . . . . . . . . Triggered . | . . . . . . . . . . . . . Objects Rigged 6 | . . 6 . . . . . . . . . . Exploded 1 | . . 1 . . . . . . . . . . Machines | -11 -10 -9 -9 -9 -8 -8 -7 -7 -7 -7 -6 -6 ---------- Run | Yrd Mat Mat Min Exi Min Mat Fac Low Low Dat Pro Fac Machines Disabled 14 | . . 3 . . . . 9 . . . . 2 Max in Single Turn 9 | . . 2 . . . . 9 . . . . 1 Machines Repaired . | . . . . . . . . . . . . . Machines Dismantled . | . . . . . . . . . . . . . Machines Sabotaged . | . . . . . . . . . . . . . Overloaded Fab Kills . | . . . . . . . . . . . . . Hacking | -11 -10 -9 -9 -9 -8 -8 -7 -7 -7 -7 -6 -6 --------- Run | Yrd Mat Mat Min Exi Min Mat Fac Low Low Dat Pro Fac Machines Accessed 31 | . 2 8 2 2 . 4 3 2 1 4 . 3 Terminals 13 | . 2 6 1 . . 3 1 . . . . . Fabricators 1 | . . . . . . . 1 . . . . . Repair Stations 4 | . . 1 . . . 1 . . . . . 2 Recycling Units 1 | . . . . . . . . . . . . 1 Scanalyzers 1 | . . 1 . . . . . . . . . . Garrison Access 1 | . . . . . . . 1 . . . . . Total Hacks 111 | . 6 25 4 2 . 16 9 5 1 34 . 9 Successful 89 | . 1 19 3 2 . 13 4 5 1 34 . 7 Failed 22 | . 5 6 1 . . 3 5 . . . . 2 Catastrophic 2 | . 1 1 . . . . . . . . . . Database Lockouts . | . . . . . . . . . . . . . Manual 24 | . 2 8 2 1 . 6 4 . . . . 1 Terminals 46 | . 6 19 3 . . 14 4 . . . . . Fabricators 2 | . . . . . . . 2 . . . . . Repair Stations 11 | . . 2 . . . 2 . . . . . 7 Recycling Units 2 | . . . . . . . . . . . . 2 Scanalyzers 4 | . . 4 . . . . . . . . . . Garrison Access 3 | . . . . . . . 3 . . . . . Terminal Hacks 66 | . 1 10 3 2 . 9 1 5 1 34 . . Record 16 | . . . . 1 . . . 4 . 11 . . Part Schematic 13 | . . . . . . . . . . 13 . . Robot Schematic 7 | . . . . . . . . . . 7 . . Robot Analysis 1 | . . 1 . . . . . . . . . . Prototype ID Bank 5 | . . 2 . . . . . . . 3 . . Open Door 3 | . . . 1 . . . . 1 1 . . . Level Access Points 1 | . . . . . . 1 . . . . . . Branch Access Points 1 | . . . . . . 1 . . . . . . Machine Index 1 | . . . . . . 1 . . . . . . Alert Level 4 | . . 1 1 . . 2 . . . . . . Locate Traps 4 | . . 4 . . . . . . . . . . Disarm Traps 1 | . . 1 . . . . . . . . . . Reprogram Traps 1 | . . 1 . . . . . . . . . . Dispatch Records 2 | . . . 1 . . 1 . . . . . . Maintenance Status 1 | . . . . . . 1 . . . . . . Security Status 1 | . . . . . . . 1 . . . . . Patrol Status 2 | . 1 . . . . 1 . . . . . . Zone Layout 1 | . . . . . . 1 . . . . . . Proto ID Catalog 1 | . . . . 1 . . . . . . . . Fabricator Hacks 2 | . . . . . . . 2 . . . . . Load Schematic 1 | . . . . . . . 1 . . . . . Build 1 | . . . . . . . 1 . . . . . Repair Station Hacks 8 | . . 2 . . . 2 . . . . . 4 Scan Component 4 | . . 1 . . . 1 . . . . . 2 Repair 4 | . . 1 . . . 1 . . . . . 2 Recycling Unit Hacks 2 | . . . . . . . . . . . . 2 Report Inventory 1 | . . . . . . . . . . . . 1 Retrieve Components 1 | . . . . . . . . . . . . 1 Scanalyzer 4 | . . 4 . . . . . . . . . . Insert Component 1 | . . 1 . . . . . . . . . . Analyze 3 | . . 3 . . . . . . . . . . Garrison Access Hacks . | . . . . . . . . . . . . . Unauthorized Hacks 7 | . . 3 . . . 2 1 . . . . 1 Terminals 5 | . . 3 . . . 2 . . . . . . Botnet 3 | . . 1 . . . 2 . . . . . . Detonate 1 | . . 1 . . . . . . . . . . Disrupt 1 | . . 1 . . . . . . . . . . Fabricators . | . . . . . . . . . . . . . Repair Stations 1 | . . . . . . . . . . . . 1 Patch 1 | . . . . . . . . . . . . 1 Recycling Units . | . . . . . . . . . . . . . Scanalyzers . | . . . . . . . . . . . . . Garrison Access 1 | . . . . . . . 1 . . . . . Reprogram 1 | . . . . . . . 1 . . . . . Data Cores Recovered . | . . . . . . . . . . . . . Used . | . . . . . . . . . . . . . Hacking Detections 18 | . 2 7 1 . . 4 3 . . . . 1 Full Trace Events 6 | . 1 1 1 . . 1 2 . . . . . Feedback Events . | . . . . . . . . . . . . . Feedback Blocked . | . . . . . . . . . . . . . Robot Schematics Acquired 7 | . . . . . . . . . . 7 . . Robots Built . | . . . . . . . . . . . . . Authchips . | . . . . . . . . . . . . . Time . | . . . . . . . . . . . . . Total Robot Build Rating . | . . . . . . . . . . . . . Part Schematics Acquired 14 | . . 1 . . . . . . . 13 . . Parts Built 1 | . . . . . . . 1 . . . . . Authchips . | . . . . . . . . . . . . . Time 49 | . . . . . . . 49 . . . . . Total Part Build Rating 2 | . . . . . . . 2 . . . . . Parts Repaired 4 | . . 1 . . . 1 . . . . . 2 Time 137 | . . 64 . . . 26 . . . . . 47 Parts Recycled . | . . . . . . . . . . . . . Recycled Matter . | . . . . . . . . . . . . . Retrieved Matter . | . . . . . . . . . . . . . Retrieved Components 3 | . . . . . . . . . . . . 3 Parts Scanalyzed 1 | . . 1 . . . . . . . . . . Part Schematics Acquired 1 | . . 1 . . . . . . . . . . Parts Damaged 1 | . . 1 . . . . . . . . . . Bothacking | -11 -10 -9 -9 -9 -8 -8 -7 -7 -7 -7 -6 -6 ------------ Run | Yrd Mat Mat Min Exi Min Mat Fac Low Low Dat Pro Fac Used RIF Installer . | . . . . . . . . . . . . . Robots Hacked . | . . . . . . . . . . . . . Non-combat . | . . . . . . . . . . . . . Combat . | . . . . . . . . . . . . . Robot Hacks Applied . | . . . . . . . . . . . . . Relay Couplers Released . | . . . . . . . . . . . . . Fabnet Peak Effective % . | . . . . . . . . . . . . . Robots Rewired . | . . . . . . . . . . . . . Allies Hacked . | . . . . . . . . . . . . . Hacks Repelled . | . . . . . . . . . . . . . Allies | -11 -10 -9 -9 -9 -8 -8 -7 -7 -7 -7 -6 -6 -------- Run | Yrd Mat Mat Min Exi Min Mat Fac Low Low Dat Pro Fac Total Allies 3 | . . . 3 . . . . . . . . . Largest Group 3 | . . . 3 3 3 . . . . . . . Highest-Rated Group 40 | . . . 40 40 40 . . . . . . . Highest-Rated Ally 16 | . . . 16 16 16 . . . . . . . Total Orders 2 | . . . . . . . 2 . . . . . EXPLORE 1 | . . . . . . . 1 . . . . . RETURN 1 | . . . . . . . 1 . . . . . Ally Attacks 34 | . . . . . 34 . . . . . . . Total Damage 336 | . . . . . 336 . . . . . . . Kills 5 | . . . . . 5 . . . . . . . Allies Corrupted . | . . . . . . . . . . . . . Allies Melted . | . . . . . . . . . . . . . Intel | -11 -10 -9 -9 -9 -8 -8 -7 -7 -7 -7 -6 -6 ------- Run | Yrd Mat Mat Min Exi Min Mat Fac Low Low Dat Pro Fac Active Infowar (turns) 230 | . . . . 1 2 51 30 55 . . . 91 Sensors 91 | . . . . . . . . . . . . 91 Cloaking 139 | . . . . 1 2 51 30 55 . . . . Robot Analysis Total 1 | . . 1 . . . . . . . . . . Derelict Logs Recovered 6 | . . . 2 . . . . 2 1 . 1 . Drone Launches 1 | . . . . . . . 1 . . . . . Drone Recoveries 1 | . . . . . . . 1 . . . . . Exploration | -11 -10 -9 -9 -9 -8 -8 -7 -7 -7 -7 -6 -6 ------------- Run | Yrd Mat Mat Min Exi Min Mat Fac Low Low Dat Pro Fac Turns Passed 6296 | 9 142 1012 460 317 666 337 431 439 518 272 898 795 Spaces Moved 3576 | 8 92 469 318 314 511 185 315 314 422 78 249 301 Core 375 | . . . . . . . . . 2 78 249 46 Treads 524 | . . 406 113 . . . . . . . . 5 Legs 163 | 8 92 63 . . . . . . . . . . Wheels 2514 | . . . 205 314 511 185 315 314 420 . . 250 Hover . | . . . . . . . . . . . . . Flight . | . . . . . . . . . . . . . Fastest Speed 80 | 120 120 120 80 80 95 95 95 110 110 350 350 90 Average Speed 140 | 120 120 159 108 87 104 106 105 110 117 350 353 156 Slowest Speed 600 | 120 120 240 160 95 140 110 110 110 450 350 450 600 Overloaded Moves . | . . . . . . . . . . . . . Propulsion Burnouts . | . . . . . . . . . . . . . Robots Hopped . | . . . . . . . . . . . . . Potential Cave-ins . | . . . . . . . . . . . . . Cave-ins Triggered . | . . . . . . . . . . . . . Exploration Rate (%) 44 | 2 29 52 62 63 90 19 16 56 58 68 51 8 Regions Visited 12 Branch Regions 7 Pre-discovered Areas 2 | . . . . 1 . . . . . 1 . . Known Exits Taken 3 | . . . . . 1 1 1 . . . . . Unknown Exits Taken 9 | 1 1 1 1 1 . . . 1 1 1 1 . Scrap Searched 10 | . . . 1 . 1 . . 3 4 . 1 . Spaces Dug . | . . . . . . . . . . . . . Terrain Destroyed 259 | . . 36 35 . 73 22 35 45 . . . 13 Melee . | . . . . . . . . . . . . . Projectile 3 | . . 3 . . . . . . . . . . AOE 256 | . . 33 35 . 73 22 35 45 . . . 13 Terrain Rammed . | . . . . . . . . . . . . . Walls Destroyed . | . . . . . . . . . . . . . Machines Disabled . | . . . . . . . . . . . . . Actions | -11 -10 -9 -9 -9 -8 -8 -7 -7 -7 -7 -6 -6 --------- Run | Yrd Mat Mat Min Exi Min Mat Fac Low Low Dat Pro Fac Total 4410 | 7 105 649 407 358 607 272 366 373 442 80 264 480 Wait 349 | . . 71 51 37 53 28 13 38 2 . 2 54 Move 3564 | 7 91 468 317 313 510 184 314 313 421 77 248 301 Hop . | . . . . . . . . . . . . . Pick Up 38 | . . 11 1 2 1 11 3 1 . 1 . 7 Fast Attach 38 | . 2 8 4 1 4 3 2 2 2 . 1 9 Attach 37 | . . 1 3 1 2 4 7 1 4 1 3 10 Detach 29 | . 1 2 4 . 2 2 2 1 6 . 3 6 Swap 52 | . . 20 1 1 3 8 4 1 3 . . 11 Drop 32 | . . 16 3 3 . 6 1 . . 1 1 1 Fire 251 | . 11 41 17 . 30 26 20 16 4 . 6 80 Melee . | . . . . . . . . . . . . . Ram 3 | . . . . . 2 . . . . . . 1 Kick . | . . . . . . . . . . . . . Crush 17 | . . 11 6 . . . . . . . . . Escape Stasis . | . . . . . . . . . . . . . Rewire . | . . . . . . . . . . . . . Trap . | . . . . . . . . . . . . . Miscellaneous . | . . . . . . . . . . . . . Route ------- -11/Scrapyard -10/Materials -9/Materials (discovered 2 exits: *Mat / *Min) -9/Mines (discovered 2 exits: *Mat / *Exi) -9/Exiles -8/Mines -8/Materials (discovered 3 exits: *Fac x3) -7/Factory (discovered 2 exits: *Low x2) -7/Lower Caves -7/Lower Caves -7/Data Miner -6/Proximity Caves -6/Factory (discovered 3 exits: Fac x2 / Low) History --------- Turn | Location | Event 1 | -11/Scrapyard | Discovered new exit (range 1) 10 | -11/Scrapyard | Entered Materials 11 | -10/Materials | Met a group of wandering Federalists 132 | -10/Materials | Discovered new exit (range 4) 152 | -10/Materials | Entered another Materials area 152 | -9/Materials | Evolved 2 slots: Utility x2 307 | -9/Materials | Build established: Mutant 593 | -9/Materials | Discovered new exit (range 15) 1010 | -9/Materials | Repaired Broken Cld. Ion Engine 1149 | -9/Materials | Discovered new exit (range 7) 1164 | -9/Materials | Entered Mines 1203 | -9/Mines | YI-UF0 nonchalantly dropped a Grenade Launcher on the ground 1204 | -9/Mines | Identified exit to Materials 1222 | -9/Mines | Destroyed YI-UF0 1249 | -9/Mines | Build established: Hacker-Mutant 1360 | -9/Mines | Assembled infested the area 1406 | -9/Mines | Met a Derelict shopkeep closing up shop 1420 | -9/Mines | Lost 3 parts (2n1w) 1450 | -9/Mines | Core integrity fell below 50% 1499 | -9/Mines | Met 8R-AWN 1544 | -9/Mines | Assisted by bots powering up and referring to "LRC-V3" 1589 | -9/Mines | Discovered new exit (range 5) 1624 | -9/Mines | Entered Exiles 1624 | -9/Exiles | Accompanied by 3 allies 1645 | -9/Exiles | Welcomed by 8R-AWN 1658 | -9/Exiles | Met EX-HEX 1695 | -9/Exiles | Build established: Mutant 1719 | -9/Exiles | Met EX-DEC 1725 | -9/Exiles | Learned location of Zion (-6) 1749 | -9/Exiles | Met EX-BIN 1758 | -9/Exiles | Aligned with FarCom system 1759 | -9/Exiles | Given EX-Vault access code 1778 | -9/Exiles | Opened EX-Vault 1783 | -9/Exiles | Found Cloak of Protection 1790 | -9/Exiles | Found Firepult 1795 | -9/Exiles | Found Supersonic Drone Bay 1815 | -9/Exiles | Warned to stay clear of 0b10 Research branches 1922 | -9/Exiles | Discovered new exit (range 12) 1941 | -9/Exiles | Stole three prototypes: Cloak of Protection, Supersonic Drone Bay, Firepult 1941 | -9/Exiles | Entered Mines 1941 | -8/Mines | Accompanied by 3 allies 2237 | -8/Mines | Lost 3 allies 2605 | -8/Mines | Discovered exit to Materials (range 3) 2607 | -8/Mines | Entered Materials 2607 | -8/Materials | Evolved 2 slots: Propulsion x1, Utility x1 2681 | -8/Materials | Repaired Wheel 2870 | -8/Materials | Identified exit to Factory 2928 | -8/Materials | Build established: Hacker-Mutant 2944 | -8/Materials | Entered Factory 2944 | -7/Factory | Evolved 2 slots: Utility x2 2945 | -7/Factory | Identified exit to Lower Caves 2946 | -7/Factory | FarCom data flow suspended 3284 | -7/Factory | Fabricated Cld. Ion Engine? 3346 | -7/Factory | Discovered exit to Lower Caves (range 22) 3353 | -7/Factory | Lost 3 parts (1p2w) 3375 | -7/Factory | Entered Lower Caves 3667 | -7/Lower Caves | Entered an active Warlord outpost 3681 | -7/Lower Caves | Learned location of 1 exit from Research 3681 | -7/Lower Caves | Learned Factory trap positions 3710 | -7/Lower Caves | Learned Factory security intel 3803 | -7/Lower Caves | Discovered new exit (range 11) 3814 | -7/Lower Caves | Entered another Lower Caves area 3814 | -7/Lower Caves | Spotted FD-5W8(f) 3816 | -7/Lower Caves | Encountered a Master Thief 3817 | -7/Lower Caves | Supersonic Drone Bay stolen by Master Thief 3949 | -7/Lower Caves | Learned 12 Factory zone layouts 4017 | -7/Lower Caves | Spotted B-75 Beast 4072 | -7/Lower Caves | Destroyed B-75 Beast 4102 | -7/Lower Caves | Lost 3 parts (1n1u1w) 4248 | -7/Lower Caves | Encountered a Warlord checkpoint 4320 | -7/Lower Caves | Discovered new exit (range 7) 4329 | -7/Lower Caves | Ambushed by wild Derelicts 4331 | -7/Lower Caves | Core integrity fell below 50% 4332 | -7/Lower Caves | Entered Data Miner 4335 | -7/Data Miner | Discovered new exit (range 6) 4401 | -7/Data Miner | Met Data Miner 4489 | -7/Data Miner | Learned location of Section 7 (-2) 4489 | -7/Data Miner | Acquired the access code to Warlord's prototype stash 4520 | -7/Data Miner | Received God Mode back door access code from Data Miner 4604 | -7/Data Miner | Entered Proximity Caves 5054 | -6/Proximity Caves | Learned location of 1 exit from Factory 5474 | -6/Proximity Caves | Discovered new exit (range 9) 5502 | -6/Proximity Caves | Entered Factory 5502 | -6/Factory | Evolved 2 slots: Propulsion x2 5503 | -6/Factory | Identified exit to Factory 5504 | -6/Factory | Identified exit to Lower Caves 5505 | -6/Factory | Loaded intel: 92 trap records 5687 | -6/Factory | Repaired Gatling Laser 5838 | -6/Factory | Lost 3 parts (2u1w) 5917 | -6/Factory | Incoming investigation squad redirected 6002 | -6/Factory | Repaired Cld. Ion Engine 6054 | -6/Factory | Garrison activated, responded to threat 6098 | -6/Factory | Lost 3 parts (2u1w) 6150 | -6/Factory | Lost 4 parts (3n1w) 6272 | -6/Factory | Core integrity fell below 50% 6292 | -6/Factory | Lost 4 parts (1p3u) 6297 | -6/Factory | Self-destructed Last Messages --------------- 06266_ G-50 Soldier destroyed. 06266_ U-05 Engineer lays Concrete. 06270_ K-01 Serf collects debris. 06270_ Slammed into G-67 Veteran. 06270_ U-05 Engineer lays Concrete. 06271_ K-01 Serf collects debris. 06272_ U-05 Engineer lays Concrete. 06277_ Acquired 22 matter. 06277_ K-01 Serf suffers critical hit (Burn). 06278_ U-05 Engineer lays Concrete. 06281_ Q7ZC 1W0|ROBMI&/ >OVTQO/X%BA XX0X6%4 06281_ U-05 Engineer lays Concrete. 06282_ K-01 Serf collects debris. 06282_ U-05 Engineer lays Concrete. 06283_ Destroyed Flexi-carbon Leg. 06284_ U-05 Engineer lays Concrete. 06288_ R-10 Processor collects Carbon-fiber Leg. 06289_ U-05 Engineer lays Concrete. 06291_ Destroyed Broken Flexi-carbon Leg. 06292_ U-05 Engineer lays Concrete. Map ----- +----------------------------------------------------+ | ???????+ + """ #?????????????????????????? | | ???????# # ] """ #?????????????????????????? | | ???????# # #?????????????????????????? | | ######## # #?????????????????????????? | | ##+########?????????????????????????? | | ## #????????????????????????????????? | | ## #????????????????????????????????? | | ## #????????????????????????????????? | | ## #????????????????????????????????? | | ############### #????????????????????????????????? | | #?????# #?#######????????????????????????? | | #????## ### #????????????????????????? | | ?" """" ###### #????????????????????????? | | ?" """" + #????????????????????????? | | ?" """" ###### #????????????????????????? | | ?" """" ########+## #????????????????????????? | | ?? ## """ #### ###????????????????????????? | | ?" ## ""R" #??# #??????????????????????????? | | ?" ## "" " #### ####???????????????????????? | | ## # R #???????????????????????? | | ########## # % #???????????????????????? | | ?????????# !# #???????????????????????? | | ?????????# # u #???????????????????????? | | ?????????#! # ##??????????????????????? | | ?????????######### k #??????????????????????? | | ?????????????????+ g @# ?????????????????????? | | ???????????????? # l # ????????????????????? | | ???????????????? # u # ^^??????????????????? | | ??????????????? ?# % k ???????????????? | | ??????????????? ?# ???????????? | | ??????????????"??# ??????????? | | ?????????????????+ % ? ???????????? | | ?????????????????#% ?? ???????????? | | ?????????????????# %% % ?????????????? | | ?????????????????# ????????????? | | ?????????????????# % % ##?????????????? | | ^^???????????????# #??????????????? | | ?^???????????????# ## ""G"" # ? | | ?^???????????????# ## " " # ? | | ?????????????????# ## # ? | | ???????????????????? + # ? | | ?????????????????????? ## # ? | | ???????????????????????? ## # ? | | ???????????????????????? ## # ? | | ????????????????????????############ """ # ? | | ???????????????????????? #??????# """ # ? | | ???????????????????????? #??????# """ # ? | | ???????????????????????? #??????# "" # ? | | ???????????????????????? #??????# "" # ? | | ???????????????????????? #??????# ######? | +----------------------------------------------------+ Best States ------------- Heat Dissipation 64 Energy Generation 23 Energy Capacity 480 Matter Stores 300 Matter Capacity 300 Sight Range 16 Robot Scan Range 15 Terrain Scan Density 10 Cloak Strength 5 Armor Coverage 450 Resistance: TH 10 Propulsion Shielding 66 Evasion (%) 55 Targeting Accuracy 16 Recoil Reduction 2 Particle Charging 20 Offensive Hacking 40 Item Schematics ----------------- Cld. Ion Engine | -9/Materials | Scanalyzed Combat Drone Bay | -7/Data Miner | Free Lgt. Regenerative Plating | -7/Data Miner | Free Cld. Cesium-ion Thruster | -7/Data Miner | Free Exp. Power Shielding | -7/Data Miner | Free Com. Ion Cannon | -7/Data Miner | Free Antigrav System | -7/Data Miner | Free Adv. Trap Extractor | -7/Data Miner | Free Adv. Heat Sink | -7/Data Miner | Free Lrn. Proton Cannon | -7/Data Miner | Free Imp. Arc Projector | -7/Data Miner | Free Adv. Salvage Targeting Computer | -7/Data Miner | Free Impulse Thruster | -7/Data Miner | Free Hyb. Antimatter Reactor | -7/Data Miner | Free Robot Schematics ------------------ W-25 Informer | -7/Data Miner | Free R-10 Processor | -7/Data Miner | Free X-67 Chaingunner | -7/Data Miner | Free B-48 Gladiator | -7/Data Miner | Free H-66 Slayer | -7/Data Miner | Free X-57 Shotgunner | -7/Data Miner | Free E-15 Imp | -7/Data Miner | Free Fabricated ------------ Cld. Ion Engine | x1 | -7/Factory Repaired ---------- Cld. Ion Engine | 99% | -9/Materials | Broken Wheel | 17% | -8/Materials Gatling Laser | 23% | -6/Factory Cld. Ion Engine | 35% | -6/Factory Alien Tech Used ----------------- None Achievements -------------- None Challenges ------------ None Game ------ Seed DeliveryTrackerClaw Manual? 0 Play Time 00:54:25 Cumulative 1038.8 hours Start 2025.05.13 @ 20:14:47 End 2025.05.14 @ 13:32:49 Sessions 3 Manual Loads 0 Difficulty Rogue Special Mode None Game No. 1277 Rogue 994 Adventurer 124 Explorer 159 Win Type - Total 45 Types 31/0/8/4/1/0/0/1/0/0 Lore% 91 Gallery% 85 Achievement% 80 Wizard Run 0 Options --------- Layout 0 ASCII 0 Keyboard 1 Movement Numpad Keybinds 0 Fullscreen 2 Font 18/X11 Map View 76x50 Zoom Use 0% Tactical HUD 1 Map Filters NONE Filters NONE Steam 1 RUN: dbc7df0c-6c21-431d-9aa0-4f18027d376c